{"text_format":"1","workbook":"xlsx","n_sheets":2,"sheets":["Для розрахунку","ГОТОВИЙ ЗВІТ"],"not_rendered":{"charts":0,"images":0,"macros":0,"external_links":0,"defined_names":2,"comments":0,"pivot_tables":0},"unopened":[],"bounds":{"document_bytes":16777216,"sheet_cells":100000,"rows_first":2000,"rows_last":500,"rows_between":2000,"halvings":0,"cell_chars":16384,"cell_head_chars":4096},"cells_cut":0,"cells_raw":0,"read":"whole","date_system":"1900"}

{"sheet":"Для розрахунку","index":0,"n_rows":90,"n_cols":76,"rows_kept":90,"cut":false,"hidden":false,"merged":[[4,10,4,48],[6,1,6,68],[9,60,9,68],[9,40,9,47],[9,48,9,59],[7,28,7,30],[7,31,7,33],[0,75,5,78],[6,75,11,78],[11,1,11,36],[12,75,13,78],[13,56,15,69],[28,56,28,69],[11,56,11,69],[12,56,12,69],[17,56,17,69],[1,60,1,68],[3,60,3,68],[18,56,18,69],[16,56,16,69],[19,56,19,69],[25,56,25,69],[77,43,77,54],[77,57,77,68],[61,57,61,68],[55,69,56,69],[51,42,51,55],[54,42,54,55],[35,57,35,68],[36,57,36,68],[48,56,49,69],[68,56,68,69],[63,56,65,69],[69,69,70,69],[72,43,72,54],[72,57,72,68],[63,42,65,55],[55,43,56,54],[55,55,56,55],[38,57,38,68],[40,57,40,68],[53,56,53,69],[57,57,57,68],[58,57,58,68],[55,56,56,56],[55,57,56,68],[31,43,31,54],[66,56,66,69],[42,43,42,54],[29,43,30,54],[66,42,66,55],[33,57,33,68],[43,56,43,69],[50,56,50,69],[51,56,51,69],[29,55,30,55],[29,56,30,56],[29,57,30,68],[31,57,31,68],[32,57,32,68],[34,57,34,68],[52,56,52,69],[39,57,39,68],[41,57,41,68],[37,57,37,68],[12,1,12,36],[13,1,13,36],[14,1,14,36],[15,1,15,36],[68,37,68,41],[61,37,61,41],[62,37,62,41],[42,1,42,36],[43,1,43,36],[35,1,35,36],[37,1,37,36],[35,37,35,41],[63,37,65,41],[54,1,54,36],[16,1,16,36],[17,1,17,36],[18,1,18,36],[28,1,28,36],[29,1,29,36],[32,1,32,36],[33,1,33,36],[57,37,57,41],[58,37,58,41],[23,1,23,36],[85,42,85,55],[11,37,11,41],[12,37,12,41],[16,37,16,41],[17,37,17,41],[18,37,18,41],[62,42,62,55],[71,37,71,41],[72,37,72,41],[77,37,77,41],[48,42,49,55],[59,43,59,54],[13,37,15,41],[19,42,19,55],[13,42,15,55],[29,37,30,41],[28,37,28,41],[84,37,84,41],[81,37,81,41],[82,37,82,41],[83,37,83,41],[85,37,85,41],[29,42,30,42],[32,43,32,54],[16,42,16,55],[17,42,17,55],[18,42,18,55],[28,42,28,55],[82,56,82,69],[68,42,68,55],[83,56,83,69],[84,56,84,69],[78,42,78,55],[82,42,82,55],[83,42,83,55],[84,42,84,55],[81,42,81,55],[81,56,81,69],[78,56,78,69],[57,43,57,54],[42,57,42,68],[44,56,46,69],[47,56,47,69],[62,56,62,69],[74,57,74,68],[75,57,75,68],[54,56,54,69],[33,43,33,54],[89,1,89,15],[84,1,84,36],[85,1,85,36],[81,1,81,36],[82,1,82,36],[7,34,7,68],[7,1,7,27],[2,60,2,62],[34,1,34,36],[47,1,47,36],[63,1,63,36],[48,1,48,36],[49,1,49,36],[50,1,50,36],[51,1,51,36],[2,1,2,59],[3,51,3,59],[3,1,3,9],[3,10,3,48],[2,66,2,68],[2,63,2,65],[85,56,85,69],[11,42,11,55],[12,42,12,55],[87,1,87,15],[72,1,72,36],[77,1,77,36],[68,1,68,36],[69,1,69,36],[70,1,70,36],[53,1,53,36],[78,1,78,36],[64,1,64,36],[60,1,60,36],[62,1,62,36],[67,1,67,36],[55,1,55,36],[65,1,65,36],[23,56,23,69],[27,1,27,36],[27,37,27,41],[27,42,27,55],[83,1,83,36],[24,42,24,55],[24,56,24,69],[25,1,25,36],[39,1,39,36],[41,1,41,36],[78,37,78,41],[51,37,51,41],[31,37,31,41],[32,37,32,41],[33,37,33,41],[55,42,56,42],[42,37,42,41],[43,37,43,41],[44,37,46,41],[47,37,47,41],[48,37,49,41],[27,56,27,69],[29,69,30,69],[69,43,70,54],[25,42,25,55],[25,37,25,41],[26,1,26,36],[26,37,26,41],[26,42,26,55],[26,56,26,69],[19,1,19,36],[19,37,19,41],[20,1,20,36],[22,1,22,36],[22,37,22,41],[24,1,24,36],[24,37,24,41],[20,56,20,69],[20,37,20,41],[20,42,20,55],[21,1,21,36],[21,37,21,41],[21,42,21,55],[21,56,21,69],[22,42,22,55],[22,56,22,69],[23,37,23,41],[23,42,23,55],[30,1,30,36],[31,1,31,36],[76,57,76,68],[36,1,36,36],[36,37,36,41],[35,43,35,54],[36,43,36,54],[71,1,71,36],[40,43,40,54],[39,37,39,41],[40,1,40,36],[40,37,40,41],[61,1,61,36],[59,1,59,36],[69,37,70,41],[58,43,58,54],[61,43,61,54],[66,1,66,36],[57,1,57,36],[58,1,58,36],[56,1,56,36],[55,37,56,41],[54,37,54,41],[53,42,53,55],[34,37,34,41],[34,43,34,54],[38,37,38,41],[50,37,50,41],[43,42,43,55],[44,42,46,55],[66,37,66,41],[69,42,70,42],[52,1,52,36],[52,37,52,41],[52,42,52,55],[39,43,39,54],[41,43,41,54],[37,43,37,54],[38,43,38,54],[50,42,50,55],[47,42,47,55],[41,37,41,41],[44,1,44,36],[45,1,45,36],[46,1,46,36],[37,37,37,41],[38,1,38,36],[60,37,60,41],[59,57,59,68],[60,43,60,54],[60,57,60,68],[67,37,67,41],[67,42,67,55],[67,56,67,69],[73,57,73,68],[71,43,71,54],[73,43,73,54],[71,57,71,68],[69,55,70,55],[69,56,70,56],[69,57,70,68],[53,37,53,41],[76,43,76,54],[76,1,76,36],[75,1,75,36],[74,1,74,36],[75,37,75,41],[74,37,74,41],[74,43,74,54],[75,43,75,54],[73,1,73,36],[76,37,76,41],[59,37,59,41],[73,37,73,41]]}
[null,null,null,null,null,null,null,null,null,null,null,null,null,null,null,null,null,null,null,null,null,null,null,null,null,null,null,null,null,null,null,null,null,null,null,null,null,null,null,null,null,null,null,null,null,null,null,null,null,null,null,null,null,null,null,null,null,null,null,null,null,null,null,null,null,null,null,null,null,null,null,null,null,null,null,"Увага! У зв’язку з певними особливостями заповнення фінансової звітності пропонуємо Вам скористатись листом \"Для розрахунків\", щоб скласти звіт, а потім роздрукувати ГОТОВИЙ ЗВІТ з однойменного листа."]
[null,null,null,null,null,null,null,null,null,null,null,null,null,null,null,null,null,null,null,null,null,null,null,null,null,null,null,null,null,null,null,null,null,null,null,null,null,null,null,null,null,null,null,null,null,null,null,null,null,null,null,null,null,null,null,null,null,null,null,null,"КОДИ"]
[null,"Дата (рік, місяць, число)"]
[null,"Підприємство",null,null,null,null,null,null,null,null,null,null,null,null,null,null,null,null,null,null,null,null,null,null,null,null,null,null,null,null,null,null,null,null,null,null,null,null,null,null,null,null,null,null,null,null,null,null,null,null,null,"за ЄДРПОУ"]
[null,null,null,null,null,null,null,null,null,null,"(найменування)"]
[]
[null,"Звіт про рух грошових коштів (за прямим методом)",null,null,null,null,null,null,null,null,null,null,null,null,null,null,null,null,null,null,null,null,null,null,null,null,null,null,null,null,null,null,null,null,null,null,null,null,null,null,null,null,null,null,null,null,null,null,null,null,null,null,null,null,null,null,null,null,null,null,null,null,null,null,null,null,null,null,null,null,null,null,null,null,null,"Формули, що містяться в комірках даного листа, захищені від змін. \nЗахист листа можна зняти за допомогою команди \"Снять защиту листа\"/\"Unprotect Sheet\" (меню \"Сервис\"/\"Tools\", підменю \"Защита\"/\"Protection\")."]
[null,"за",null,null,null,null,null,null,null,null,null,null,null,null,null,null,null,null,null,null,null,null,null,null,null,null,null,null,20,null,null,null,null,null,"р."]
[]
[null,null,null,null,null,null,null,null,null,null,null,null,null,null,null,null,null,null,null,null,null,null,null,null,null,null,null,null,null,null,null,null,null,null,null,null,null,null,null,null,"Форма N 3",null,null,null,null,null,null,null,"Код за ДКУД",null,null,null,null,null,null,null,null,null,null,null,1801004]
[]
[null,"Стаття",null,null,null,null,null,null,null,null,null,null,null,null,null,null,null,null,null,null,null,null,null,null,null,null,null,null,null,null,null,null,null,null,null,null,null,"Код рядка",null,null,null,null,"За звітний період",null,null,null,null,null,null,null,null,null,null,null,null,null,"За аналогічний період попереднього року"]
[null,1,null,null,null,null,null,null,null,null,null,null,null,null,null,null,null,null,null,null,null,null,null,null,null,null,null,null,null,null,null,null,null,null,null,null,null,2,null,null,null,null,3,null,null,null,null,null,null,null,null,null,null,null,null,null,4,null,null,null,null,null,null,null,null,null,null,null,null,null,null,null,null,null,null,"P.S. Дані примітки та колір комірок не друкуються."]
[null,"І. Рух коштів у результаті операційної діяльності",null,null,null,null,null,null,null,null,null,null,null,null,null,null,null,null,null,null,null,null,null,null,null,null,null,null,null,null,null,null,null,null,null,null,null,3000,null,null,null,null,1101,null,null,null,null,null,null,null,null,null,null,null,null,null,547]
[null,"Надходження від:"]
[null,"Реалізації продукції (товарів, робіт, послуг)"]
[null,"Повернення податків і зборів",null,null,null,null,null,null,null,null,null,null,null,null,null,null,null,null,null,null,null,null,null,null,null,null,null,null,null,null,null,null,null,null,null,null,null,3005,null,null,null,null,12]
[null,"у тому числі податку на додану вартість",null,null,null,null,null,null,null,null,null,null,null,null,null,null,null,null,null,null,null,null,null,null,null,null,null,null,null,null,null,null,null,null,null,null,null,3006]
[null,"Цільового фінансування",null,null,null,null,null,null,null,null,null,null,null,null,null,null,null,null,null,null,null,null,null,null,null,null,null,null,null,null,null,null,null,null,null,null,null,3010,null,null,null,null,45,null,null,null,null,null,null,null,null,null,null,null,null,null,5]
[null,"Надходження від отримання субсидій, дотацій",null,null,null,null,null,null,null,null,null,null,null,null,null,null,null,null,null,null,null,null,null,null,null,null,null,null,null,null,null,null,null,null,null,null,null,3011]
[null,"Надходження авансів від покупців і замовників",null,null,null,null,null,null,null,null,null,null,null,null,null,null,null,null,null,null,null,null,null,null,null,null,null,null,null,null,null,null,null,null,null,null,null,3015,null,null,null,null,8]
[null,"Надходження від повернення авансів",null,null,null,null,null,null,null,null,null,null,null,null,null,null,null,null,null,null,null,null,null,null,null,null,null,null,null,null,null,null,null,null,null,null,null,3020,null,null,null,null,null,null,null,null,null,null,null,null,null,null,null,null,null,null,9]
[null,"Надходження від відсотків за залишками коштів на поточних рахунках",null,null,null,null,null,null,null,null,null,null,null,null,null,null,null,null,null,null,null,null,null,null,null,null,null,null,null,null,null,null,null,null,null,null,null,3025]
[null,"Надходження від боржників неустойки (штрафів, пені)",null,null,null,null,null,null,null,null,null,null,null,null,null,null,null,null,null,null,null,null,null,null,null,null,null,null,null,null,null,null,null,null,null,null,null,3035,null,null,null,null,27,null,null,null,null,null,null,null,null,null,null,null,null,null,33]
[null,"Надходження від операційної оренди",null,null,null,null,null,null,null,null,null,null,null,null,null,null,null,null,null,null,null,null,null,null,null,null,null,null,null,null,null,null,null,null,null,null,null,3040]
[null,"Надходження від отримання роялті, авторських винагород",null,null,null,null,null,null,null,null,null,null,null,null,null,null,null,null,null,null,null,null,null,null,null,null,null,null,null,null,null,null,null,null,null,null,null,3045]
[null,"Надходження від страхових премій",null,null,null,null,null,null,null,null,null,null,null,null,null,null,null,null,null,null,null,null,null,null,null,null,null,null,null,null,null,null,null,null,null,null,null,3050]
[null,"Надходження фінансових установ від повернення позик",null,null,null,null,null,null,null,null,null,null,null,null,null,null,null,null,null,null,null,null,null,null,null,null,null,null,null,null,null,null,null,null,null,null,null,3055,null,null,null,null,8589,null,null,null,null,null,null,null,null,null,null,null,null,null,6672]
[null,"Інші надходження",null,null,null,null,null,null,null,null,null,null,null,null,null,null,null,null,null,null,null,null,null,null,null,null,null,null,null,null,null,null,null,null,null,null,null,3095,null,null,null,null,1317,null,null,null,null,null,null,null,null,null,null,null,null,null,953]
[null,"Витрачання на оплату:",null,null,null,null,null,null,null,null,null,null,null,null,null,null,null,null,null,null,null,null,null,null,null,null,null,null,null,null,null,null,null,null,null,null,null,3100,null,null,null,null,"(",405,null,null,null,null,null,null,null,null,null,null,null,")","(",431,null,null,null,null,null,null,null,null,null,null,null,")"]
[null,"Товарів (робіт, послуг)"]
[null,"Праці",null,null,null,null,null,null,null,null,null,null,null,null,null,null,null,null,null,null,null,null,null,null,null,null,null,null,null,null,null,null,null,null,null,null,null,3105,null,null,null,null,"(",305,null,null,null,null,null,null,null,null,null,null,null,")","(",236,null,null,null,null,null,null,null,null,null,null,null,")"]
[null,"Відрахувань на соціальні заходи",null,null,null,null,null,null,null,null,null,null,null,null,null,null,null,null,null,null,null,null,null,null,null,null,null,null,null,null,null,null,null,null,null,null,null,3110,null,null,null,null,"(",154,null,null,null,null,null,null,null,null,null,null,null,")","(",123,null,null,null,null,null,null,null,null,null,null,null,")"]
[null,"Зобов'язань з податків і зборів",null,null,null,null,null,null,null,null,null,null,null,null,null,null,null,null,null,null,null,null,null,null,null,null,null,null,null,null,null,null,null,null,null,null,null,3115,null,null,null,null,"(",156,null,null,null,null,null,null,null,null,null,null,null,")","(",116,null,null,null,null,null,null,null,null,null,null,null,")"]
[null,"Витрачання на оплату зобов'язань з податку на прибуток",null,null,null,null,null,null,null,null,null,null,null,null,null,null,null,null,null,null,null,null,null,null,null,null,null,null,null,null,null,null,null,null,null,null,null,3116,null,null,null,null,"(",19,null,null,null,null,null,null,null,null,null,null,null,")","(",20,null,null,null,null,null,null,null,null,null,null,null,")"]
[null,"Витрачання на оплату зобов'язань з податку на додану вартість",null,null,null,null,null,null,null,null,null,null,null,null,null,null,null,null,null,null,null,null,null,null,null,null,null,null,null,null,null,null,null,null,null,null,null,3117,null,null,null,null,"(",3,null,null,null,null,null,null,null,null,null,null,null,")","(",12,null,null,null,null,null,null,null,null,null,null,null,")"]
[null,"Витрачання на оплату зобов'язань з інших податків і зборів",null,null,null,null,null,null,null,null,null,null,null,null,null,null,null,null,null,null,null,null,null,null,null,null,null,null,null,null,null,null,null,null,null,null,null,3118,null,null,null,null,"(",155,null,null,null,null,null,null,null,null,null,null,null,")","(",84,null,null,null,null,null,null,null,null,null,null,null,")"]
[null,"Витрачання на оплату авансів",null,null,null,null,null,null,null,null,null,null,null,null,null,null,null,null,null,null,null,null,null,null,null,null,null,null,null,null,null,null,null,null,null,null,null,3135,null,null,null,null,"(",null,null,null,null,null,null,null,null,null,null,null,null,")","(",null,null,null,null,null,null,null,null,null,null,null,null,")"]
[null,"Витрачання на оплату повернення авансів",null,null,null,null,null,null,null,null,null,null,null,null,null,null,null,null,null,null,null,null,null,null,null,null,null,null,null,null,null,null,null,null,null,null,null,3140,null,null,null,null,"(",null,null,null,null,null,null,null,null,null,null,null,null,")","(",null,null,null,null,null,null,null,null,null,null,null,null,")"]
[null,"Витрачання на оплату цільових внесків",null,null,null,null,null,null,null,null,null,null,null,null,null,null,null,null,null,null,null,null,null,null,null,null,null,null,null,null,null,null,null,null,null,null,null,3145,null,null,null,null,"(",null,null,null,null,null,null,null,null,null,null,null,null,")","(",null,null,null,null,null,null,null,null,null,null,null,null,")"]
[null,"Витрачання на оплату зобов'язань за страховими контрактами",null,null,null,null,null,null,null,null,null,null,null,null,null,null,null,null,null,null,null,null,null,null,null,null,null,null,null,null,null,null,null,null,null,null,null,3150,null,null,null,null,"(",null,null,null,null,null,null,null,null,null,null,null,null,")","(",null,null,null,null,null,null,null,null,null,null,null,null,")"]
[null,"Витрачання фінансових установ на надання позик",null,null,null,null,null,null,null,null,null,null,null,null,null,null,null,null,null,null,null,null,null,null,null,null,null,null,null,null,null,null,null,null,null,null,null,3155,null,null,null,null,"(",9793,null,null,null,null,null,null,null,null,null,null,null,")","(",7095,null,null,null,null,null,null,null,null,null,null,null,")"]
[null,"Інші витрачання",null,null,null,null,null,null,null,null,null,null,null,null,null,null,null,null,null,null,null,null,null,null,null,null,null,null,null,null,null,null,null,null,null,null,null,3190,null,null,null,null,"(",226,null,null,null,null,null,null,null,null,null,null,null,")","(",126,null,null,null,null,null,null,null,null,null,null,null,")"]
[null,"Чистий рух коштів від операційної діяльності",null,null,null,null,null,null,null,null,null,null,null,null,null,null,null,null,null,null,null,null,null,null,null,null,null,null,null,null,null,null,null,null,null,null,null,3195,null,null,null,null,{"$f":"SUM(AQ14:BD29)-SUM(AR30:BC43)+AR34","v":39},null,null,null,null,null,null,null,null,null,null,null,null,null,92]
[null,"II. Рух коштів у результаті інвестиційної діяльності",null,null,null,null,null,null,null,null,null,null,null,null,null,null,null,null,null,null,null,null,null,null,null,null,null,null,null,null,null,null,null,null,null,null,null,3200]
[null,"Надходження від реалізації:"]
[null,"фінансових інвестицій"]
[null,"необоротних активів",null,null,null,null,null,null,null,null,null,null,null,null,null,null,null,null,null,null,null,null,null,null,null,null,null,null,null,null,null,null,null,null,null,null,null,3205]
[null,"Надходження від отриманих:",null,null,null,null,null,null,null,null,null,null,null,null,null,null,null,null,null,null,null,null,null,null,null,null,null,null,null,null,null,null,null,null,null,null,null,3215]
[null,"відсотків"]
[null,"дивідендів",null,null,null,null,null,null,null,null,null,null,null,null,null,null,null,null,null,null,null,null,null,null,null,null,null,null,null,null,null,null,null,null,null,null,null,3220]
[null,"Надходження від деривативів",null,null,null,null,null,null,null,null,null,null,null,null,null,null,null,null,null,null,null,null,null,null,null,null,null,null,null,null,null,null,null,null,null,null,null,3225]
[null,"Надходження від погашення позик",null,null,null,null,null,null,null,null,null,null,null,null,null,null,null,null,null,null,null,null,null,null,null,null,null,null,null,null,null,null,null,null,null,null,null,3230]
[null,"Надходження від вибуття дочірнього підприємства та іншої господарської одиниці",null,null,null,null,null,null,null,null,null,null,null,null,null,null,null,null,null,null,null,null,null,null,null,null,null,null,null,null,null,null,null,null,null,null,null,3235]
[null,"Інші надходження",null,null,null,null,null,null,null,null,null,null,null,null,null,null,null,null,null,null,null,null,null,null,null,null,null,null,null,null,null,null,null,null,null,null,null,3250]
[null,"Витрачання на придбання:",null,null,null,null,null,null,null,null,null,null,null,null,null,null,null,null,null,null,null,null,null,null,null,null,null,null,null,null,null,null,null,null,null,null,null,3255,null,null,null,null,"(",null,null,null,null,null,null,null,null,null,null,null,null,")","(",null,null,null,null,null,null,null,null,null,null,null,null,")"]
[null,"фінансових інвестицій"]
[null,"необоротних активів",null,null,null,null,null,null,null,null,null,null,null,null,null,null,null,null,null,null,null,null,null,null,null,null,null,null,null,null,null,null,null,null,null,null,null,3260,null,null,null,null,"(",null,null,null,null,null,null,null,null,null,null,null,null,")","(",null,null,null,null,null,null,null,null,null,null,null,null,")"]
[null,"Виплати за деривативами",null,null,null,null,null,null,null,null,null,null,null,null,null,null,null,null,null,null,null,null,null,null,null,null,null,null,null,null,null,null,null,null,null,null,null,3270,null,null,null,null,"(",null,null,null,null,null,null,null,null,null,null,null,null,")","(",null,null,null,null,null,null,null,null,null,null,null,null,")"]
[null,"Витрачання на надання позик",null,null,null,null,null,null,null,null,null,null,null,null,null,null,null,null,null,null,null,null,null,null,null,null,null,null,null,null,null,null,null,null,null,null,null,3275,null,null,null,null,"(",null,null,null,null,null,null,null,null,null,null,null,null,")","(",null,null,null,null,null,null,null,null,null,null,null,null,")"]
[null,"Витрачання на придбання дочірнього підприємства та іншої господарської одиниці",null,null,null,null,null,null,null,null,null,null,null,null,null,null,null,null,null,null,null,null,null,null,null,null,null,null,null,null,null,null,null,null,null,null,null,3280,null,null,null,null,"(",null,null,null,null,null,null,null,null,null,null,null,null,")","(",null,null,null,null,null,null,null,null,null,null,null,null,")"]
[null,"Інші платежі",null,null,null,null,null,null,null,null,null,null,null,null,null,null,null,null,null,null,null,null,null,null,null,null,null,null,null,null,null,null,null,null,null,null,null,3290,null,null,null,null,"(",null,null,null,null,null,null,null,null,null,null,null,null,")","(",null,null,null,null,null,null,null,null,null,null,null,null,")"]
[null,"Чистий рух коштів від інвестиційної діяльності",null,null,null,null,null,null,null,null,null,null,null,null,null,null,null,null,null,null,null,null,null,null,null,null,null,null,null,null,null,null,null,null,null,null,null,3295,null,null,null,null,{"$f":"SUM(AQ45:BD55)-SUM(AR56:BC62)","v":0},null,null,null,null,null,null,null,null,null,null,null,null,null,{"$f":"SUM(BE45:BR55)-SUM(BF56:BQ62)","v":0}]
[null,"III. Рух коштів у результаті фінансової діяльності",null,null,null,null,null,null,null,null,null,null,null,null,null,null,null,null,null,null,null,null,null,null,null,null,null,null,null,null,null,null,null,null,null,null,null,3300]
[null,"Надходження від:"]
[null,"Власного капіталу"]
[null,"Отримання позик",null,null,null,null,null,null,null,null,null,null,null,null,null,null,null,null,null,null,null,null,null,null,null,null,null,null,null,null,null,null,null,null,null,null,null,3305]
[null,"Надходження від продажу частки в дочірньому підприємстві",null,null,null,null,null,null,null,null,null,null,null,null,null,null,null,null,null,null,null,null,null,null,null,null,null,null,null,null,null,null,null,null,null,null,null,3310]
[null,"Інші надходження",null,null,null,null,null,null,null,null,null,null,null,null,null,null,null,null,null,null,null,null,null,null,null,null,null,null,null,null,null,null,null,null,null,null,null,3340]
[null,"Витрачання на:",null,null,null,null,null,null,null,null,null,null,null,null,null,null,null,null,null,null,null,null,null,null,null,null,null,null,null,null,null,null,null,null,null,null,null,3345,null,null,null,null,"(",null,null,null,null,null,null,null,null,null,null,null,null,")","(",null,null,null,null,null,null,null,null,null,null,null,null,")"]
[null,"Викуп власних акцій"]
[null,"Погашення позик",null,null,null,null,null,null,null,null,null,null,null,null,null,null,null,null,null,null,null,null,null,null,null,null,null,null,null,null,null,null,null,null,null,null,null,3350,null,null,null,null,"(",null,null,null,null,null,null,null,null,null,null,null,null,")","(",null,null,null,null,null,null,null,null,null,null,null,null,")"]
[null,"Сплату дивідендів",null,null,null,null,null,null,null,null,null,null,null,null,null,null,null,null,null,null,null,null,null,null,null,null,null,null,null,null,null,null,null,null,null,null,null,3355,null,null,null,null,"(",48,null,null,null,null,null,null,null,null,null,null,null,")","(",10,null,null,null,null,null,null,null,null,null,null,null,")"]
[null,"Витрачання на сплату відсотків",null,null,null,null,null,null,null,null,null,null,null,null,null,null,null,null,null,null,null,null,null,null,null,null,null,null,null,null,null,null,null,null,null,null,null,3360,null,null,null,null,"(",null,null,null,null,null,null,null,null,null,null,null,null,")","(",null,null,null,null,null,null,null,null,null,null,null,null,")"]
[null,"Витрачання на сплату заборгованості з фінансової оренди",null,null,null,null,null,null,null,null,null,null,null,null,null,null,null,null,null,null,null,null,null,null,null,null,null,null,null,null,null,null,null,null,null,null,null,3365,null,null,null,null,"(",null,null,null,null,null,null,null,null,null,null,null,null,")","(",null,null,null,null,null,null,null,null,null,null,null,null,")"]
[null,"Витрачання на придбання частки в дочірньому підприємстві",null,null,null,null,null,null,null,null,null,null,null,null,null,null,null,null,null,null,null,null,null,null,null,null,null,null,null,null,null,null,null,null,null,null,null,3370,null,null,null,null,"(",null,null,null,null,null,null,null,null,null,null,null,null,")","(",null,null,null,null,null,null,null,null,null,null,null,null,")"]
[null,"Витрачання на виплати неконтрольованим часткам у дочірніх підприємствах",null,null,null,null,null,null,null,null,null,null,null,null,null,null,null,null,null,null,null,null,null,null,null,null,null,null,null,null,null,null,null,null,null,null,null,3375,null,null,null,null,"(",null,null,null,null,null,null,null,null,null,null,null,null,")","(",null,null,null,null,null,null,null,null,null,null,null,null,")"]
[null,"Інші платежі",null,null,null,null,null,null,null,null,null,null,null,null,null,null,null,null,null,null,null,null,null,null,null,null,null,null,null,null,null,null,null,null,null,null,null,3390,null,null,null,null,"(",null,null,null,null,null,null,null,null,null,null,null,null,")","(",null,null,null,null,null,null,null,null,null,null,null,null,")"]
[null,"Чистий рух коштів від фінансової діяльності",null,null,null,null,null,null,null,null,null,null,null,null,null,null,null,null,null,null,null,null,null,null,null,null,null,null,null,null,null,null,null,null,null,null,null,3395,null,null,null,null,{"$f":"AQ64+AQ67+AQ68+AQ69-AR70-AR72-AR73-AR74-AR75-AR76-AR77-AR78","v":-48},null,null,null,null,null,null,null,null,null,null,null,null,null,{"$f":"BE64+BE67+BE68+BE69-BF70-BF72-BF73-BF74-BF75-BF76-BF77-BF78","v":-10}]
[]
[]
[null,1,null,null,null,null,null,null,null,null,null,null,null,null,null,null,null,null,null,null,null,null,null,null,null,null,null,null,null,null,null,null,null,null,null,null,null,2,null,null,null,null,3,null,null,null,null,null,null,null,null,null,null,null,null,null,4]
[null,"Чистий рух грошових коштів за звітний період",null,null,null,null,null,null,null,null,null,null,null,null,null,null,null,null,null,null,null,null,null,null,null,null,null,null,null,null,null,null,null,null,null,null,null,3400,null,null,null,null,{"$f":"AQ44+AQ63+AQ79","v":-9},null,null,null,null,null,null,null,null,null,null,null,null,null,{"$f":"BE44+BE63+BE79","v":82}]
[null,"Залишок коштів на початок року",null,null,null,null,null,null,null,null,null,null,null,null,null,null,null,null,null,null,null,null,null,null,null,null,null,null,null,null,null,null,null,null,null,null,null,3405,null,null,null,null,262,null,null,null,null,null,null,null,null,null,null,null,null,null,180]
[null,"Вплив зміни валютних курсів на залишок коштів",null,null,null,null,null,null,null,null,null,null,null,null,null,null,null,null,null,null,null,null,null,null,null,null,null,null,null,null,null,null,null,null,null,null,null,3410]
[null,"Залишок коштів на кінець року",null,null,null,null,null,null,null,null,null,null,null,null,null,null,null,null,null,null,null,null,null,null,null,null,null,null,null,null,null,null,null,null,null,null,null,3415,null,null,null,null,{"$f":"AQ83+AQ84+AQ85","v":253},null,null,null,null,null,null,null,null,null,null,null,null,null,{"$f":"BE83+BE84+BE85","v":262}]
[]
[null,"Керівник"]
[]
[null,"Головний бухгалтер"]

{"sheet":"ГОТОВИЙ ЗВІТ","index":1,"n_rows":91,"n_cols":76,"rows_kept":91,"cut":false,"hidden":false,"merged":[[90,0,90,8],[90,33,90,45],[87,0,87,14],[87,15,87,29],[87,33,87,45],[89,0,89,14],[89,15,89,29],[89,33,89,45],[84,1,84,36],[84,37,84,41],[84,42,84,55],[85,1,85,36],[85,37,85,41],[85,43,85,54],[85,57,85,68],[76,1,76,36],[76,37,76,41],[76,43,76,54],[69,42,70,42],[69,43,70,54],[82,43,82,54],[82,1,82,36],[78,43,78,54],[78,57,78,68],[69,55,70,55],[69,56,70,56],[69,57,70,68],[71,43,71,54],[76,57,76,68],[78,1,78,36],[78,37,78,41],[81,1,81,36],[81,37,81,41],[81,42,81,55],[70,1,70,36],[84,56,84,69],[82,37,82,41],[83,1,83,36],[83,37,83,41],[83,42,83,55],[83,56,83,69],[82,57,82,68],[54,42,54,55],[54,56,54,69],[55,69,56,69],[68,42,68,55],[62,43,62,54],[62,57,62,68],[68,56,68,69],[69,69,70,69],[63,56,65,69],[81,56,81,69],[72,1,72,36],[72,37,72,41],[72,43,72,54],[72,57,72,68],[75,1,75,36],[75,37,75,41],[75,43,75,54],[75,57,75,68],[74,1,74,36],[74,37,74,41],[74,43,74,54],[74,57,74,68],[77,1,77,36],[77,37,77,41],[77,43,77,54],[77,57,77,68],[73,1,73,36],[73,37,73,41],[73,43,73,54],[73,57,73,68],[67,1,67,36],[67,37,67,41],[67,42,67,55],[67,56,67,69],[66,42,66,55],[66,56,66,69],[68,1,68,36],[68,37,68,41],[71,1,71,36],[71,37,71,41],[69,1,69,36],[69,37,70,41],[52,1,52,36],[52,37,52,41],[52,42,52,55],[52,56,52,69],[51,1,51,36],[51,37,51,41],[51,42,51,55],[51,56,51,69],[66,1,66,36],[66,37,66,41],[53,1,53,36],[53,37,53,41],[53,42,53,55],[53,56,53,69],[55,56,56,56],[56,1,56,36],[59,1,59,36],[59,37,59,41],[60,1,60,36],[60,37,60,41],[62,1,62,36],[62,37,62,41],[63,1,63,36],[63,37,65,41],[50,1,50,36],[50,37,50,41],[50,42,50,55],[50,56,50,69],[48,1,48,36],[48,37,49,41],[48,42,49,55],[48,56,49,69],[49,1,49,36],[43,43,43,54],[32,43,32,54],[32,57,32,68],[47,1,47,36],[47,37,47,41],[47,42,47,55],[47,56,47,69],[44,1,44,36],[44,37,46,41],[44,42,46,55],[44,56,46,69],[45,1,45,36],[46,1,46,36],[43,57,43,68],[38,1,38,36],[38,37,38,41],[38,43,38,54],[38,57,38,68],[37,1,37,36],[37,37,37,41],[35,1,35,36],[35,37,35,41],[35,43,35,54],[35,57,35,68],[25,42,25,55],[25,56,25,69],[26,1,26,36],[26,37,26,41],[26,42,26,55],[26,56,26,69],[25,1,25,36],[25,37,25,41],[33,1,33,36],[33,37,33,41],[33,43,33,54],[33,57,33,68],[27,1,27,36],[27,37,27,41],[32,1,32,36],[32,37,32,41],[28,42,28,55],[29,57,30,68],[29,69,30,69],[30,1,30,36],[31,1,31,36],[31,37,31,41],[31,43,31,54],[31,57,31,68],[23,56,23,69],[24,1,24,36],[24,37,24,41],[24,42,24,55],[24,56,24,69],[23,1,23,36],[23,37,23,41],[23,42,23,55],[21,56,21,69],[6,75,11,78],[7,28,7,30],[7,31,7,33],[9,40,9,47],[9,48,9,59],[9,60,9,68],[11,1,11,36],[11,37,11,41],[15,1,15,36],[11,42,11,55],[11,56,11,69],[12,1,12,36],[12,37,12,41],[12,42,12,55],[12,56,12,69],[12,75,13,78],[13,1,13,36],[13,37,15,41],[13,42,15,55],[13,56,15,69],[14,1,14,36],[19,56,19,69],[22,1,22,36],[22,37,22,41],[22,42,22,55],[22,56,22,69],[71,57,71,68],[7,1,7,27],[7,34,7,68],[20,1,20,36],[20,37,20,41],[20,42,20,55],[16,1,16,36],[16,37,16,41],[16,42,16,55],[16,56,16,69],[18,1,18,36],[18,37,18,41],[18,42,18,55],[18,56,18,69],[17,1,17,36],[17,37,17,41],[17,42,17,55],[17,56,17,69],[19,1,19,36],[27,42,27,55],[27,56,27,69],[34,1,34,36],[34,37,34,41],[34,43,34,54],[34,57,34,68],[0,75,5,78],[1,60,1,68],[2,1,2,59],[2,60,2,62],[2,63,2,65],[2,66,2,68],[3,1,3,9],[3,10,3,48],[3,51,3,59],[3,60,3,68],[4,10,4,48],[6,1,6,68],[20,56,20,69],[21,1,21,36],[21,37,21,41],[21,42,21,55],[19,37,19,41],[19,42,19,55],[37,43,37,54],[37,57,37,68],[36,1,36,36],[36,37,36,41],[36,43,36,54],[36,57,36,68],[28,56,28,69],[29,43,30,54],[28,1,28,36],[28,37,28,41],[29,1,29,36],[29,37,30,41],[29,42,30,42],[29,55,30,55],[29,56,30,56],[39,1,39,36],[39,37,39,41],[39,43,39,54],[39,57,39,68],[61,1,61,36],[61,37,61,41],[61,43,61,54],[61,57,61,68],[55,43,56,54],[55,55,56,55],[41,1,41,36],[41,37,41,41],[41,43,41,54],[41,57,41,68],[40,1,40,36],[40,37,40,41],[40,43,40,54],[40,57,40,68],[42,43,42,54],[42,57,42,68],[43,1,43,36],[43,37,43,41],[42,1,42,36],[42,37,42,41],[54,1,54,36],[54,37,54,41],[60,43,60,54],[60,57,60,68],[55,37,56,41],[55,42,56,42],[64,1,64,36],[65,1,65,36],[58,37,58,41],[58,43,58,54],[58,57,58,68],[55,57,56,68],[63,42,65,55],[59,43,59,54],[59,57,59,68],[55,1,55,36],[57,1,57,36],[57,37,57,41],[57,43,57,54],[57,57,57,68],[58,1,58,36]]}
[null,null,null,null,null,null,null,null,null,null,null,null,null,null,null,null,null,null,null,null,null,null,null,null,null,null,null,null,null,null,null,null,null,null,null,null,null,null,null,null,null,null,null,null,null,null,null,null,null,null,null,null,null,null,null,null,null,null,null,null,null,null,null,null,null,null,null,null,null,null,null,null,null,null,null,"Увага! У зв’язку з певними особливостями заповнення фінансової звітності пропонуємо Вам скористатись листом \"Для розрахунків\", щоб скласти звіт, а потім роздрукувати ГОТОВИЙ ЗВІТ з однойменного листа."]
[null,null,null,null,null,null,null,null,null,null,null,null,null,null,null,null,null,null,null,null,null,null,null,null,null,null,null,null,null,null,null,null,null,null,null,null,null,null,null,null,null,null,null,null,null,null,null,null,null,null,null,null,null,null,null,null,null,null,null,null,"КОДИ"]
[null,"Дата (рік, місяць, число)",null,null,null,null,null,null,null,null,null,null,null,null,null,null,null,null,null,null,null,null,null,null,null,null,null,null,null,null,null,null,null,null,null,null,null,null,null,null,null,null,null,null,null,null,null,null,null,null,null,null,null,null,null,null,null,null,null,null,"2016",null,null,"01",null,null,"01"]
[null,"Підприємство",null,null,null,null,null,null,null,null,"ПТ \"ДІЛА ЛОМБАРД\"",null,null,null,null,null,null,null,null,null,null,null,null,null,null,null,null,null,null,null,null,null,null,null,null,null,null,null,null,null,null,null,null,null,null,null,null,null,null,null,null,"за ЄДРПОУ",null,null,null,null,null,null,null,null,"30839335"]
[null,null,null,null,null,null,null,null,null,null,"(найменування)"]
[]
[null,"Звіт про рух грошових коштів (за прямим методом)",null,null,null,null,null,null,null,null,null,null,null,null,null,null,null,null,null,null,null,null,null,null,null,null,null,null,null,null,null,null,null,null,null,null,null,null,null,null,null,null,null,null,null,null,null,null,null,null,null,null,null,null,null,null,null,null,null,null,null,null,null,null,null,null,null,null,null,null,null,null,null,null,null,"Формули, що містяться в комірках даного листа, захищені від змін. \nЗахист листа можна зняти за допомогою команди \"Снять защиту листа\"/\"Unprotect Sheet\" (меню \"Сервис\"/\"Tools\", підменю \"Защита\"/\"Protection\")."]
[null,"за",null,null,null,null,null,null,null,null,null,null,null,null,null,null,null,null,null,null,null,null,null,null,null,null,null,null,20,null,null,"15",null,null,"р."]
[]
[null,null,null,null,null,null,null,null,null,null,null,null,null,null,null,null,null,null,null,null,null,null,null,null,null,null,null,null,null,null,null,null,null,null,null,null,null,null,null,null,"Форма N 3",null,null,null,null,null,null,null,"Код за ДКУД",null,null,null,null,null,null,null,null,null,null,null,1801004]
[]
[null,"Стаття",null,null,null,null,null,null,null,null,null,null,null,null,null,null,null,null,null,null,null,null,null,null,null,null,null,null,null,null,null,null,null,null,null,null,null,"Код рядка",null,null,null,null,"За звітний період",null,null,null,null,null,null,null,null,null,null,null,null,null,"За аналогічний період попереднього року"]
[null,1,null,null,null,null,null,null,null,null,null,null,null,null,null,null,null,null,null,null,null,null,null,null,null,null,null,null,null,null,null,null,null,null,null,null,null,2,null,null,null,null,3,null,null,null,null,null,null,null,null,null,null,null,null,null,4,null,null,null,null,null,null,null,null,null,null,null,null,null,null,null,null,null,null,"P.S. Дані примітки та колір комірок не друкуються."]
[null,"І. Рух коштів у результаті операційної діяльності",null,null,null,null,null,null,null,null,null,null,null,null,null,null,null,null,null,null,null,null,null,null,null,null,null,null,null,null,null,null,null,null,null,null,null,3000,null,null,null,null,{"$f":"IF('Для розрахунку'!AQ14:BD16=0,\"-\",'Для розрахунку'!AQ14:BD16)","v":1101},null,null,null,null,null,null,null,null,null,null,null,null,null,{"$f":"IF('Для розрахунку'!BE14:BR16=0,\"-\",'Для розрахунку'!BE14:BR16)","v":547}]
[null,"Надходження від:"]
[null,"Реалізації продукції (товарів, робіт, послуг)"]
[null,"Повернення податків і зборів",null,null,null,null,null,null,null,null,null,null,null,null,null,null,null,null,null,null,null,null,null,null,null,null,null,null,null,null,null,null,null,null,null,null,null,3005,null,null,null,null,{"$f":"IF('Для розрахунку'!AQ17:BD17=0,\"-\",'Для розрахунку'!AQ17:BD17)","v":12},null,null,null,null,null,null,null,null,null,null,null,null,null,{"$f":"IF('Для розрахунку'!BE17:BR17=0,\"-\",'Для розрахунку'!BE17:BR17)","v":"-"}]
[null,"у тому числі податку на додану вартість",null,null,null,null,null,null,null,null,null,null,null,null,null,null,null,null,null,null,null,null,null,null,null,null,null,null,null,null,null,null,null,null,null,null,null,3006,null,null,null,null,{"$f":"IF('Для розрахунку'!AQ18:BD18=0,\"-\",'Для розрахунку'!AQ18:BD18)","v":"-"},null,null,null,null,null,null,null,null,null,null,null,null,null,{"$f":"IF('Для розрахунку'!BE18:BR18=0,\"-\",'Для розрахунку'!BE18:BR18)","v":"-"}]
[null,"Цільового фінансування",null,null,null,null,null,null,null,null,null,null,null,null,null,null,null,null,null,null,null,null,null,null,null,null,null,null,null,null,null,null,null,null,null,null,null,3010,null,null,null,null,{"$f":"IF('Для розрахунку'!AQ19:BD19=0,\"-\",'Для розрахунку'!AQ19:BD19)","v":45},null,null,null,null,null,null,null,null,null,null,null,null,null,{"$f":"IF('Для розрахунку'!BE19:BR19=0,\"-\",'Для розрахунку'!BE19:BR19)","v":5}]
[null,"Надходження від отримання субсидій, дотацій",null,null,null,null,null,null,null,null,null,null,null,null,null,null,null,null,null,null,null,null,null,null,null,null,null,null,null,null,null,null,null,null,null,null,null,3011,null,null,null,null,{"$f":"IF('Для розрахунку'!AQ20:BD20=0,\"-\",'Для розрахунку'!AQ20:BD20)","v":"-"},null,null,null,null,null,null,null,null,null,null,null,null,null,{"$f":"IF('Для розрахунку'!BE20:BR20=0,\"-\",'Для розрахунку'!BE20:BR20)","v":"-"}]
[null,"Надходження авансів від покупців і замовників",null,null,null,null,null,null,null,null,null,null,null,null,null,null,null,null,null,null,null,null,null,null,null,null,null,null,null,null,null,null,null,null,null,null,null,3015,null,null,null,null,{"$f":"IF('Для розрахунку'!AQ21:BD21=0,\"-\",'Для розрахунку'!AQ21:BD21)","v":8},null,null,null,null,null,null,null,null,null,null,null,null,null,{"$f":"IF('Для розрахунку'!BE21:BR21=0,\"-\",'Для розрахунку'!BE21:BR21)","v":"-"}]
[null,"Надходження від повернення авансів",null,null,null,null,null,null,null,null,null,null,null,null,null,null,null,null,null,null,null,null,null,null,null,null,null,null,null,null,null,null,null,null,null,null,null,3020,null,null,null,null,{"$f":"IF('Для розрахунку'!AQ22:BD22=0,\"-\",'Для розрахунку'!AQ22:BD22)","v":"-"},null,null,null,null,null,null,null,null,null,null,null,null,null,{"$f":"IF('Для розрахунку'!BE22:BR22=0,\"-\",'Для розрахунку'!BE22:BR22)","v":9}]
[null,"Надходження від відсотків за залишками коштів на поточних рахунках",null,null,null,null,null,null,null,null,null,null,null,null,null,null,null,null,null,null,null,null,null,null,null,null,null,null,null,null,null,null,null,null,null,null,null,3025,null,null,null,null,{"$f":"IF('Для розрахунку'!AQ23:BD23=0,\"-\",'Для розрахунку'!AQ23:BD23)","v":"-"},null,null,null,null,null,null,null,null,null,null,null,null,null,{"$f":"IF('Для розрахунку'!BE23:BR23=0,\"-\",'Для розрахунку'!BE23:BR23)","v":"-"}]
[null,"Надходження від боржників неустойки (штрафів, пені)",null,null,null,null,null,null,null,null,null,null,null,null,null,null,null,null,null,null,null,null,null,null,null,null,null,null,null,null,null,null,null,null,null,null,null,3035,null,null,null,null,{"$f":"IF('Для розрахунку'!AQ24:BD24=0,\"-\",'Для розрахунку'!AQ24:BD24)","v":27},null,null,null,null,null,null,null,null,null,null,null,null,null,{"$f":"IF('Для розрахунку'!BE24:BR24=0,\"-\",'Для розрахунку'!BE24:BR24)","v":33}]
[null,"Надходження від операційної оренди",null,null,null,null,null,null,null,null,null,null,null,null,null,null,null,null,null,null,null,null,null,null,null,null,null,null,null,null,null,null,null,null,null,null,null,3040,null,null,null,null,{"$f":"IF('Для розрахунку'!AQ25:BD25=0,\"-\",'Для розрахунку'!AQ25:BD25)","v":"-"},null,null,null,null,null,null,null,null,null,null,null,null,null,{"$f":"IF('Для розрахунку'!BE25:BR25=0,\"-\",'Для розрахунку'!BE25:BR25)","v":"-"}]
[null,"Надходження від отримання роялті, авторських винагород",null,null,null,null,null,null,null,null,null,null,null,null,null,null,null,null,null,null,null,null,null,null,null,null,null,null,null,null,null,null,null,null,null,null,null,3045,null,null,null,null,{"$f":"IF('Для розрахунку'!AQ26:BD26=0,\"-\",'Для розрахунку'!AQ26:BD26)","v":"-"},null,null,null,null,null,null,null,null,null,null,null,null,null,{"$f":"IF('Для розрахунку'!BE26:BR26=0,\"-\",'Для розрахунку'!BE26:BR26)","v":"-"}]
[null,"Надходження від страхових премій",null,null,null,null,null,null,null,null,null,null,null,null,null,null,null,null,null,null,null,null,null,null,null,null,null,null,null,null,null,null,null,null,null,null,null,3050,null,null,null,null,{"$f":"IF('Для розрахунку'!AQ27:BD27=0,\"-\",'Для розрахунку'!AQ27:BD27)","v":"-"},null,null,null,null,null,null,null,null,null,null,null,null,null,{"$f":"IF('Для розрахунку'!BE27:BR27=0,\"-\",'Для розрахунку'!BE27:BR27)","v":"-"}]
[null,"Надходження фінансових установ від повернення позик",null,null,null,null,null,null,null,null,null,null,null,null,null,null,null,null,null,null,null,null,null,null,null,null,null,null,null,null,null,null,null,null,null,null,null,3055,null,null,null,null,{"$f":"IF('Для розрахунку'!AQ28:BD28=0,\"-\",'Для розрахунку'!AQ28:BD28)","v":8589},null,null,null,null,null,null,null,null,null,null,null,null,null,{"$f":"IF('Для розрахунку'!BE28:BR28=0,\"-\",'Для розрахунку'!BE28:BR28)","v":6672}]
[null,"Інші надходження",null,null,null,null,null,null,null,null,null,null,null,null,null,null,null,null,null,null,null,null,null,null,null,null,null,null,null,null,null,null,null,null,null,null,null,3095,null,null,null,null,{"$f":"IF('Для розрахунку'!AQ29:BD29=0,\"-\",'Для розрахунку'!AQ29:BD29)","v":1317},null,null,null,null,null,null,null,null,null,null,null,null,null,{"$f":"IF('Для розрахунку'!BE29:BR29=0,\"-\",'Для розрахунку'!BE29:BR29)","v":953}]
[null,"Витрачання на оплату:",null,null,null,null,null,null,null,null,null,null,null,null,null,null,null,null,null,null,null,null,null,null,null,null,null,null,null,null,null,null,null,null,null,null,null,3100,null,null,null,null,"(",{"$f":"IF('Для розрахунку'!AR30:BC31=0,\"-\",'Для розрахунку'!AR30:BC31)","v":405},null,null,null,null,null,null,null,null,null,null,null,")","(",{"$f":"IF('Для розрахунку'!BF30:BQ31=0,\"-\",'Для розрахунку'!BF30:BQ31)","v":431},null,null,null,null,null,null,null,null,null,null,null,")"]
[null,"Товарів (робіт, послуг)"]
[null,"Праці",null,null,null,null,null,null,null,null,null,null,null,null,null,null,null,null,null,null,null,null,null,null,null,null,null,null,null,null,null,null,null,null,null,null,null,3105,null,null,null,null,"(",{"$f":"IF('Для розрахунку'!AR32:BC32=0,\"-\",'Для розрахунку'!AR32:BC32)","v":305},null,null,null,null,null,null,null,null,null,null,null,")","(",{"$f":"IF('Для розрахунку'!BF32:BQ32=0,\"-\",'Для розрахунку'!BF32:BQ32)","v":236},null,null,null,null,null,null,null,null,null,null,null,")"]
[null,"Відрахувань на соціальні заходи",null,null,null,null,null,null,null,null,null,null,null,null,null,null,null,null,null,null,null,null,null,null,null,null,null,null,null,null,null,null,null,null,null,null,null,3110,null,null,null,null,"(",{"$f":"IF('Для розрахунку'!AR33:BC33=0,\"-\",'Для розрахунку'!AR33:BC33)","v":154},null,null,null,null,null,null,null,null,null,null,null,")","(",{"$f":"IF('Для розрахунку'!BF33:BQ33=0,\"-\",'Для розрахунку'!BF33:BQ33)","v":123},null,null,null,null,null,null,null,null,null,null,null,")"]
[null,"Зобов'язань з податків і зборів",null,null,null,null,null,null,null,null,null,null,null,null,null,null,null,null,null,null,null,null,null,null,null,null,null,null,null,null,null,null,null,null,null,null,null,3115,null,null,null,null,"(",136,null,null,null,null,null,null,null,null,null,null,null,")","(",{"$f":"IF('Для розрахунку'!BF34:BQ34=0,\"-\",'Для розрахунку'!BF34:BQ34)","v":116},null,null,null,null,null,null,null,null,null,null,null,")"]
[null,"Витрачання на оплату зобов'язань з податку на прибуток",null,null,null,null,null,null,null,null,null,null,null,null,null,null,null,null,null,null,null,null,null,null,null,null,null,null,null,null,null,null,null,null,null,null,null,3116,null,null,null,null,"(",{"$f":"IF('Для розрахунку'!AR35:BC35=0,\"-\",'Для розрахунку'!AR35:BC35)","v":19},null,null,null,null,null,null,null,null,null,null,null,")","(",{"$f":"IF('Для розрахунку'!BF35:BQ35=0,\"-\",'Для розрахунку'!BF35:BQ35)","v":20},null,null,null,null,null,null,null,null,null,null,null,")"]
[null,"Витрачання на оплату зобов'язань з податку на додану вартість",null,null,null,null,null,null,null,null,null,null,null,null,null,null,null,null,null,null,null,null,null,null,null,null,null,null,null,null,null,null,null,null,null,null,null,3117,null,null,null,null,"(",{"$f":"IF('Для розрахунку'!AR36:BC36=0,\"-\",'Для розрахунку'!AR36:BC36)","v":3},null,null,null,null,null,null,null,null,null,null,null,")","(",{"$f":"IF('Для розрахунку'!BF36:BQ36=0,\"-\",'Для розрахунку'!BF36:BQ36)","v":12},null,null,null,null,null,null,null,null,null,null,null,")"]
[null,"Витрачання на оплату зобов'язань з інших податків і зборів",null,null,null,null,null,null,null,null,null,null,null,null,null,null,null,null,null,null,null,null,null,null,null,null,null,null,null,null,null,null,null,null,null,null,null,3118,null,null,null,null,"(",{"$f":"IF('Для розрахунку'!AR37:BC37=0,\"-\",'Для розрахунку'!AR37:BC37)","v":155},null,null,null,null,null,null,null,null,null,null,null,")","(",{"$f":"IF('Для розрахунку'!BF37:BQ37=0,\"-\",'Для розрахунку'!BF37:BQ37)","v":84},null,null,null,null,null,null,null,null,null,null,null,")"]
[null,"Витрачання на оплату авансів",null,null,null,null,null,null,null,null,null,null,null,null,null,null,null,null,null,null,null,null,null,null,null,null,null,null,null,null,null,null,null,null,null,null,null,3135,null,null,null,null,"(",{"$f":"IF('Для розрахунку'!AR38:BC38=0,\"-\",'Для розрахунку'!AR38:BC38)","v":"-"},null,null,null,null,null,null,null,null,null,null,null,")","(",{"$f":"IF('Для розрахунку'!BF38:BQ38=0,\"-\",'Для розрахунку'!BF38:BQ38)","v":"-"},null,null,null,null,null,null,null,null,null,null,null,")"]
[null,"Витрачання на оплату повернення авансів",null,null,null,null,null,null,null,null,null,null,null,null,null,null,null,null,null,null,null,null,null,null,null,null,null,null,null,null,null,null,null,null,null,null,null,3140,null,null,null,null,"(",{"$f":"IF('Для розрахунку'!AR39:BC39=0,\"-\",'Для розрахунку'!AR39:BC39)","v":"-"},null,null,null,null,null,null,null,null,null,null,null,")","(",{"$f":"IF('Для розрахунку'!BF39:BQ39=0,\"-\",'Для розрахунку'!BF39:BQ39)","v":"-"},null,null,null,null,null,null,null,null,null,null,null,")"]
[null,"Витрачання на оплату цільових внесків",null,null,null,null,null,null,null,null,null,null,null,null,null,null,null,null,null,null,null,null,null,null,null,null,null,null,null,null,null,null,null,null,null,null,null,3145,null,null,null,null,"(",{"$f":"IF('Для розрахунку'!AR40:BC40=0,\"-\",'Для розрахунку'!AR40:BC40)","v":"-"},null,null,null,null,null,null,null,null,null,null,null,")","(",{"$f":"IF('Для розрахунку'!BF40:BQ40=0,\"-\",'Для розрахунку'!BF40:BQ40)","v":"-"},null,null,null,null,null,null,null,null,null,null,null,")"]
[null,"Витрачання на оплату зобов'язань за страховими контрактами",null,null,null,null,null,null,null,null,null,null,null,null,null,null,null,null,null,null,null,null,null,null,null,null,null,null,null,null,null,null,null,null,null,null,null,3150,null,null,null,null,"(",{"$f":"IF('Для розрахунку'!AR41:BC41=0,\"-\",'Для розрахунку'!AR41:BC41)","v":"-"},null,null,null,null,null,null,null,null,null,null,null,")","(",{"$f":"IF('Для розрахунку'!BF41:BQ41=0,\"-\",'Для розрахунку'!BF41:BQ41)","v":"-"},null,null,null,null,null,null,null,null,null,null,null,")"]
[null,"Витрачання фінансових установ на надання позик",null,null,null,null,null,null,null,null,null,null,null,null,null,null,null,null,null,null,null,null,null,null,null,null,null,null,null,null,null,null,null,null,null,null,null,3155,null,null,null,null,"(",{"$f":"IF('Для розрахунку'!AR42:BC42=0,\"-\",'Для розрахунку'!AR42:BC42)","v":9793},null,null,null,null,null,null,null,null,null,null,null,")","(",{"$f":"IF('Для розрахунку'!BF42:BQ42=0,\"-\",'Для розрахунку'!BF42:BQ42)","v":7095},null,null,null,null,null,null,null,null,null,null,null,")"]
[null,"Інші витрачання",null,null,null,null,null,null,null,null,null,null,null,null,null,null,null,null,null,null,null,null,null,null,null,null,null,null,null,null,null,null,null,null,null,null,null,3190,null,null,null,null,"(",246,null,null,null,null,null,null,null,null,null,null,null,")","(",{"$f":"IF('Для розрахунку'!BF43:BQ43=0,\"-\",'Для розрахунку'!BF43:BQ43)","v":126},null,null,null,null,null,null,null,null,null,null,null,")"]
[null,"Чистий рух коштів від операційної діяльності",null,null,null,null,null,null,null,null,null,null,null,null,null,null,null,null,null,null,null,null,null,null,null,null,null,null,null,null,null,null,null,null,null,null,null,3195,null,null,null,null,{"$f":"IF('Для розрахунку'!AQ44<0,\"(\",\" \")","v":" "},{"$f":"IF('Для розрахунку'!AQ44<>0,ABS('Для розрахунку'!AQ44),\"-\")","v":39},null,null,null,null,null,null,null,null,null,null,null,{"$f":"IF('Для розрахунку'!AQ44<0,\")\",\" \")","v":" "},{"$f":"IF('Для розрахунку'!BE44<0,\"(\",\" \")","v":" "},{"$f":"IF('Для розрахунку'!BE44<>0,ABS('Для розрахунку'!BE44),\"-\")","v":92},null,null,null,null,null,null,null,null,null,null,null,{"$f":"IF('Для розрахунку'!BE44<0,\")\",\" \")","v":" "}]
[null,"II. Рух коштів у результаті інвестиційної діяльності",null,null,null,null,null,null,null,null,null,null,null,null,null,null,null,null,null,null,null,null,null,null,null,null,null,null,null,null,null,null,null,null,null,null,null,3200,null,null,null,null,{"$f":"IF('Для розрахунку'!AQ45:BD47=0,\"-\",'Для розрахунку'!AQ45:BD47)","v":"-"},null,null,null,null,null,null,null,null,null,null,null,null,null,{"$f":"IF('Для розрахунку'!BE45:BR47=0,\"-\",'Для розрахунку'!BE45:BR47)","v":"-"}]
[null,"Надходження від реалізації:"]
[null,"фінансових інвестицій"]
[null,"необоротних активів",null,null,null,null,null,null,null,null,null,null,null,null,null,null,null,null,null,null,null,null,null,null,null,null,null,null,null,null,null,null,null,null,null,null,null,3205,null,null,null,null,{"$f":"IF('Для розрахунку'!AQ48:BD48=0,\"-\",'Для розрахунку'!AQ48:BD48)","v":"-"},null,null,null,null,null,null,null,null,null,null,null,null,null,{"$f":"IF('Для розрахунку'!BE48:BR48=0,\"-\",'Для розрахунку'!BE48:BR48)","v":"-"}]
[null,"Надходження від отриманих:",null,null,null,null,null,null,null,null,null,null,null,null,null,null,null,null,null,null,null,null,null,null,null,null,null,null,null,null,null,null,null,null,null,null,null,3215,null,null,null,null,{"$f":"IF('Для розрахунку'!AQ49:BD50=0,\"-\",'Для розрахунку'!AQ49:BD50)","v":"-"},null,null,null,null,null,null,null,null,null,null,null,null,null,{"$f":"IF('Для розрахунку'!BE49:BR50=0,\"-\",'Для розрахунку'!BE49:BR50)","v":"-"}]
[null,"відсотків"]
[null,"дивідендів",null,null,null,null,null,null,null,null,null,null,null,null,null,null,null,null,null,null,null,null,null,null,null,null,null,null,null,null,null,null,null,null,null,null,null,3220,null,null,null,null,{"$f":"IF('Для розрахунку'!AQ51:BD51=0,\"-\",'Для розрахунку'!AQ51:BD51)","v":"-"},null,null,null,null,null,null,null,null,null,null,null,null,null,{"$f":"IF('Для розрахунку'!BE51:BR51=0,\"-\",'Для розрахунку'!BE51:BR51)","v":"-"}]
[null,"Надходження від деривативів",null,null,null,null,null,null,null,null,null,null,null,null,null,null,null,null,null,null,null,null,null,null,null,null,null,null,null,null,null,null,null,null,null,null,null,3225,null,null,null,null,{"$f":"IF('Для розрахунку'!AQ52:BD52=0,\"-\",'Для розрахунку'!AQ52:BD52)","v":"-"},null,null,null,null,null,null,null,null,null,null,null,null,null,{"$f":"IF('Для розрахунку'!BE52:BR52=0,\"-\",'Для розрахунку'!BE52:BR52)","v":"-"}]
[null,"Надходження від погашення позик",null,null,null,null,null,null,null,null,null,null,null,null,null,null,null,null,null,null,null,null,null,null,null,null,null,null,null,null,null,null,null,null,null,null,null,3230,null,null,null,null,{"$f":"IF('Для розрахунку'!AQ53:BD53=0,\"-\",'Для розрахунку'!AQ53:BD53)","v":"-"},null,null,null,null,null,null,null,null,null,null,null,null,null,{"$f":"IF('Для розрахунку'!BE53:BR53=0,\"-\",'Для розрахунку'!BE53:BR53)","v":"-"}]
[null,"Надходження від вибуття дочірнього підприємства та іншої господарської одиниці",null,null,null,null,null,null,null,null,null,null,null,null,null,null,null,null,null,null,null,null,null,null,null,null,null,null,null,null,null,null,null,null,null,null,null,3235,null,null,null,null,{"$f":"IF('Для розрахунку'!AQ54:BD54=0,\"-\",'Для розрахунку'!AQ54:BD54)","v":"-"},null,null,null,null,null,null,null,null,null,null,null,null,null,{"$f":"IF('Для розрахунку'!BE54:BR54=0,\"-\",'Для розрахунку'!BE54:BR54)","v":"-"}]
[null,"Інші надходження",null,null,null,null,null,null,null,null,null,null,null,null,null,null,null,null,null,null,null,null,null,null,null,null,null,null,null,null,null,null,null,null,null,null,null,3250,null,null,null,null,{"$f":"IF('Для розрахунку'!AQ55:BD55=0,\"-\",'Для розрахунку'!AQ55:BD55)","v":"-"},null,null,null,null,null,null,null,null,null,null,null,null,null,{"$f":"IF('Для розрахунку'!BE55:BR55=0,\"-\",'Для розрахунку'!BE55:BR55)","v":"-"}]
[null,"Витрачання на придбання:",null,null,null,null,null,null,null,null,null,null,null,null,null,null,null,null,null,null,null,null,null,null,null,null,null,null,null,null,null,null,null,null,null,null,null,3255,null,null,null,null,"(",{"$f":"IF('Для розрахунку'!AR56:BC57=0,\"-\",'Для розрахунку'!AR56:BC57)","v":"-"},null,null,null,null,null,null,null,null,null,null,null,")","(",{"$f":"IF('Для розрахунку'!BF56:BQ57=0,\"-\",'Для розрахунку'!BF56:BQ57)","v":"-"},null,null,null,null,null,null,null,null,null,null,null,")"]
[null,"фінансових інвестицій"]
[null,"необоротних активів",null,null,null,null,null,null,null,null,null,null,null,null,null,null,null,null,null,null,null,null,null,null,null,null,null,null,null,null,null,null,null,null,null,null,null,3260,null,null,null,null,"(",{"$f":"IF('Для розрахунку'!AR58:BC58=0,\"-\",'Для розрахунку'!AR58:BC58)","v":"-"},null,null,null,null,null,null,null,null,null,null,null,")","(",{"$f":"IF('Для розрахунку'!BF58:BQ58=0,\"-\",'Для розрахунку'!BF58:BQ58)","v":"-"},null,null,null,null,null,null,null,null,null,null,null,")"]
[null,"Виплати за деривативами",null,null,null,null,null,null,null,null,null,null,null,null,null,null,null,null,null,null,null,null,null,null,null,null,null,null,null,null,null,null,null,null,null,null,null,3270,null,null,null,null,"(",{"$f":"IF('Для розрахунку'!AR59:BC59=0,\"-\",'Для розрахунку'!AR59:BC59)","v":"-"},null,null,null,null,null,null,null,null,null,null,null,")","(",{"$f":"IF('Для розрахунку'!BF59:BQ59=0,\"-\",'Для розрахунку'!BF59:BQ59)","v":"-"},null,null,null,null,null,null,null,null,null,null,null,")"]
[null,"Витрачання на надання позик",null,null,null,null,null,null,null,null,null,null,null,null,null,null,null,null,null,null,null,null,null,null,null,null,null,null,null,null,null,null,null,null,null,null,null,3275,null,null,null,null,"(",{"$f":"IF('Для розрахунку'!AR60:BC60=0,\"-\",'Для розрахунку'!AR60:BC60)","v":"-"},null,null,null,null,null,null,null,null,null,null,null,")","(",{"$f":"IF('Для розрахунку'!BF60:BQ60=0,\"-\",'Для розрахунку'!BF60:BQ60)","v":"-"},null,null,null,null,null,null,null,null,null,null,null,")"]
[null,"Витрачання на придбання дочірнього підприємства та іншої господарської одиниці",null,null,null,null,null,null,null,null,null,null,null,null,null,null,null,null,null,null,null,null,null,null,null,null,null,null,null,null,null,null,null,null,null,null,null,3280,null,null,null,null,"(",{"$f":"IF('Для розрахунку'!AR61:BC61=0,\"-\",'Для розрахунку'!AR61:BC61)","v":"-"},null,null,null,null,null,null,null,null,null,null,null,")","(",{"$f":"IF('Для розрахунку'!BF61:BQ61=0,\"-\",'Для розрахунку'!BF61:BQ61)","v":"-"},null,null,null,null,null,null,null,null,null,null,null,")"]
[null,"Інші платежі",null,null,null,null,null,null,null,null,null,null,null,null,null,null,null,null,null,null,null,null,null,null,null,null,null,null,null,null,null,null,null,null,null,null,null,3290,null,null,null,null,"(",{"$f":"IF('Для розрахунку'!AR62:BC62=0,\"-\",'Для розрахунку'!AR62:BC62)","v":"-"},null,null,null,null,null,null,null,null,null,null,null,")","(",{"$f":"IF('Для розрахунку'!BF62:BQ62=0,\"-\",'Для розрахунку'!BF62:BQ62)","v":"-"},null,null,null,null,null,null,null,null,null,null,null,")"]
[null,"Чистий рух коштів від інвестиційної діяльності",null,null,null,null,null,null,null,null,null,null,null,null,null,null,null,null,null,null,null,null,null,null,null,null,null,null,null,null,null,null,null,null,null,null,null,3295,null,null,null,null,{"$f":"IF('Для розрахунку'!AQ63<0,\"(\",\" \")","v":" "},{"$f":"IF('Для розрахунку'!AQ63<>0,ABS('Для розрахунку'!AQ63),\"-\")","v":"-"},null,null,null,null,null,null,null,null,null,null,null,{"$f":"IF('Для розрахунку'!AQ63<0,\")\",\" \")","v":" "},{"$f":"IF('Для розрахунку'!BE63<0,\"(\",\" \")","v":" "},{"$f":"IF('Для розрахунку'!BE63<>0,ABS('Для розрахунку'!BE63),\"-\")","v":"-"},null,null,null,null,null,null,null,null,null,null,null,{"$f":"IF('Для розрахунку'!BE63<0,\")\",\" \")","v":" "}]
[null,"III. Рух коштів у результаті фінансової діяльності",null,null,null,null,null,null,null,null,null,null,null,null,null,null,null,null,null,null,null,null,null,null,null,null,null,null,null,null,null,null,null,null,null,null,null,3300,null,null,null,null,{"$f":"IF('Для розрахунку'!AQ64:BD66=0,\"-\",'Для розрахунку'!AQ64:BD66)","v":"-"},null,null,null,null,null,null,null,null,null,null,null,null,null,{"$f":"IF('Для розрахунку'!BE64:BR66=0,\"-\",'Для розрахунку'!BE64:BR66)","v":"-"}]
[null,"Надходження від:"]
[null,"Власного капіталу"]
[null,"Отримання позик",null,null,null,null,null,null,null,null,null,null,null,null,null,null,null,null,null,null,null,null,null,null,null,null,null,null,null,null,null,null,null,null,null,null,null,3305,null,null,null,null,{"$f":"IF('Для розрахунку'!AQ67:BD67=0,\"-\",'Для розрахунку'!AQ67:BD67)","v":"-"},null,null,null,null,null,null,null,null,null,null,null,null,null,{"$f":"IF('Для розрахунку'!BE67:BR67=0,\"-\",'Для розрахунку'!BE67:BR67)","v":"-"}]
[null,"Надходження від продажу частки в дочірньому підприємстві",null,null,null,null,null,null,null,null,null,null,null,null,null,null,null,null,null,null,null,null,null,null,null,null,null,null,null,null,null,null,null,null,null,null,null,3310,null,null,null,null,{"$f":"IF('Для розрахунку'!AQ68:BD68=0,\"-\",'Для розрахунку'!AQ68:BD68)","v":"-"},null,null,null,null,null,null,null,null,null,null,null,null,null,{"$f":"IF('Для розрахунку'!BE68:BR68=0,\"-\",'Для розрахунку'!BE68:BR68)","v":"-"}]
[null,"Інші надходження",null,null,null,null,null,null,null,null,null,null,null,null,null,null,null,null,null,null,null,null,null,null,null,null,null,null,null,null,null,null,null,null,null,null,null,3340,null,null,null,null,{"$f":"IF('Для розрахунку'!AQ69:BD69=0,\"-\",'Для розрахунку'!AQ69:BD69)","v":"-"},null,null,null,null,null,null,null,null,null,null,null,null,null,{"$f":"IF('Для розрахунку'!BE69:BR69=0,\"-\",'Для розрахунку'!BE69:BR69)","v":"-"}]
[null,"Витрачання на:",null,null,null,null,null,null,null,null,null,null,null,null,null,null,null,null,null,null,null,null,null,null,null,null,null,null,null,null,null,null,null,null,null,null,null,3345,null,null,null,null,"(",{"$f":"IF('Для розрахунку'!AR70:BC71=0,\"-\",'Для розрахунку'!AR70:BC71)","v":"-"},null,null,null,null,null,null,null,null,null,null,null,")","(",{"$f":"IF('Для розрахунку'!BF70:BQ71=0,\"-\",'Для розрахунку'!BF70:BQ71)","v":"-"},null,null,null,null,null,null,null,null,null,null,null,")"]
[null,"Викуп власних акцій"]
[null,"Погашення позик",null,null,null,null,null,null,null,null,null,null,null,null,null,null,null,null,null,null,null,null,null,null,null,null,null,null,null,null,null,null,null,null,null,null,null,3350,null,null,null,null,"(",{"$f":"IF('Для розрахунку'!AR72:BC73=0,\"-\",'Для розрахунку'!AR72:BC73)","v":"-"},null,null,null,null,null,null,null,null,null,null,null,")","(",{"$f":"IF('Для розрахунку'!BF72:BQ72=0,\"-\",'Для розрахунку'!BF72:BQ72)","v":"-"},null,null,null,null,null,null,null,null,null,null,null,")"]
[null,"Сплату дивідендів",null,null,null,null,null,null,null,null,null,null,null,null,null,null,null,null,null,null,null,null,null,null,null,null,null,null,null,null,null,null,null,null,null,null,null,3355,null,null,null,null,"(",{"$f":"IF('Для розрахунку'!AR73:BC74=0,\"-\",'Для розрахунку'!AR73:BC74)","v":48},null,null,null,null,null,null,null,null,null,null,null,")","(",{"$f":"IF('Для розрахунку'!BF73:BQ73=0,\"-\",'Для розрахунку'!BF73:BQ73)","v":10},null,null,null,null,null,null,null,null,null,null,null,")"]
[null,"Витрачання на сплату відсотків",null,null,null,null,null,null,null,null,null,null,null,null,null,null,null,null,null,null,null,null,null,null,null,null,null,null,null,null,null,null,null,null,null,null,null,3360,null,null,null,null,"(",{"$f":"IF('Для розрахунку'!AR74:BC75=0,\"-\",'Для розрахунку'!AR74:BC75)","v":"-"},null,null,null,null,null,null,null,null,null,null,null,")","(",{"$f":"IF('Для розрахунку'!BF74:BQ74=0,\"-\",'Для розрахунку'!BF74:BQ74)","v":"-"},null,null,null,null,null,null,null,null,null,null,null,")"]
[null,"Витрачання на сплату заборгованості з фінансової оренди",null,null,null,null,null,null,null,null,null,null,null,null,null,null,null,null,null,null,null,null,null,null,null,null,null,null,null,null,null,null,null,null,null,null,null,3365,null,null,null,null,"(",{"$f":"IF('Для розрахунку'!AR75:BC76=0,\"-\",'Для розрахунку'!AR75:BC76)","v":"-"},null,null,null,null,null,null,null,null,null,null,null,")","(",{"$f":"IF('Для розрахунку'!BF75:BQ75=0,\"-\",'Для розрахунку'!BF75:BQ75)","v":"-"},null,null,null,null,null,null,null,null,null,null,null,")"]
[null,"Витрачання на придбання частки в дочірньому підприємстві",null,null,null,null,null,null,null,null,null,null,null,null,null,null,null,null,null,null,null,null,null,null,null,null,null,null,null,null,null,null,null,null,null,null,null,3370,null,null,null,null,"(",{"$f":"IF('Для розрахунку'!AR76:BC77=0,\"-\",'Для розрахунку'!AR76:BC77)","v":"-"},null,null,null,null,null,null,null,null,null,null,null,")","(",{"$f":"IF('Для розрахунку'!BF76:BQ76=0,\"-\",'Для розрахунку'!BF76:BQ76)","v":"-"},null,null,null,null,null,null,null,null,null,null,null,")"]
[null,"Витрачання на виплати неконтрольованим часткам у дочірніх підприємствах",null,null,null,null,null,null,null,null,null,null,null,null,null,null,null,null,null,null,null,null,null,null,null,null,null,null,null,null,null,null,null,null,null,null,null,3375,null,null,null,null,"(",{"$f":"IF('Для розрахунку'!AR77:BC78=0,\"-\",'Для розрахунку'!AR77:BC78)","v":"-"},null,null,null,null,null,null,null,null,null,null,null,")","(",{"$f":"IF('Для розрахунку'!BF77:BQ77=0,\"-\",'Для розрахунку'!BF77:BQ77)","v":"-"},null,null,null,null,null,null,null,null,null,null,null,")"]
[null,"Інші платежі",null,null,null,null,null,null,null,null,null,null,null,null,null,null,null,null,null,null,null,null,null,null,null,null,null,null,null,null,null,null,null,null,null,null,null,3390,null,null,null,null,"(",{"$f":"IF('Для розрахунку'!AR78:BC78=0,\"-\",'Для розрахунку'!AR78:BC78)","v":"-"},null,null,null,null,null,null,null,null,null,null,null,")","(",{"$f":"IF('Для розрахунку'!BF78:BQ78=0,\"-\",'Для розрахунку'!BF78:BQ78)","v":"-"},null,null,null,null,null,null,null,null,null,null,null,")"]
[null,"Чистий рух коштів від фінансової діяльності",null,null,null,null,null,null,null,null,null,null,null,null,null,null,null,null,null,null,null,null,null,null,null,null,null,null,null,null,null,null,null,null,null,null,null,3395,null,null,null,null,{"$f":"IF('Для розрахунку'!AQ79<0,\"(\",\" \")","v":"("},{"$f":"IF('Для розрахунку'!AQ79<>0,ABS('Для розрахунку'!AQ79),\"-\")","v":48},null,null,null,null,null,null,null,null,null,null,null,{"$f":"IF('Для розрахунку'!AQ79<0,\")\",\" \")","v":")"},{"$f":"IF('Для розрахунку'!BE79<0,\"(\",\" \")","v":"("},{"$f":"IF('Для розрахунку'!BE79<>0,ABS('Для розрахунку'!BE79),\"-\")","v":10},null,null,null,null,null,null,null,null,null,null,null,{"$f":"IF('Для розрахунку'!BE79<0,\")\",\" \")","v":")"}]
[]
[]
[null,1,null,null,null,null,null,null,null,null,null,null,null,null,null,null,null,null,null,null,null,null,null,null,null,null,null,null,null,null,null,null,null,null,null,null,null,2,null,null,null,null,3,null,null,null,null,null,null,null,null,null,null,null,null,null,4]
[null,"Чистий рух грошових коштів за звітний період",null,null,null,null,null,null,null,null,null,null,null,null,null,null,null,null,null,null,null,null,null,null,null,null,null,null,null,null,null,null,null,null,null,null,null,3400,null,null,null,null,{"$f":"IF('Для розрахунку'!AQ83<0,\"(\",\" \")","v":"("},{"$f":"IF('Для розрахунку'!AQ83<>0,ABS('Для розрахунку'!AQ83),\"-\")","v":9},null,null,null,null,null,null,null,null,null,null,null,{"$f":"IF('Для розрахунку'!AQ83<0,\")\",\" \")","v":")"},{"$f":"IF('Для розрахунку'!BE83<0,\"(\",\" \")","v":" "},{"$f":"IF('Для розрахунку'!BE83<>0,ABS('Для розрахунку'!BE83),\"-\")","v":82},null,null,null,null,null,null,null,null,null,null,null,{"$f":"IF('Для розрахунку'!BE83<0,\")\",\" \")","v":" "}]
[null,"Залишок коштів на початок року",null,null,null,null,null,null,null,null,null,null,null,null,null,null,null,null,null,null,null,null,null,null,null,null,null,null,null,null,null,null,null,null,null,null,null,3405,null,null,null,null,{"$f":"IF('Для розрахунку'!AQ84:BD84=0,\"-\",'Для розрахунку'!AQ84:BD84)","v":262},null,null,null,null,null,null,null,null,null,null,null,null,null,{"$f":"IF('Для розрахунку'!BE84:BR84=0,\"-\",'Для розрахунку'!BE84:BR84)","v":180}]
[null,"Вплив зміни валютних курсів на залишок коштів",null,null,null,null,null,null,null,null,null,null,null,null,null,null,null,null,null,null,null,null,null,null,null,null,null,null,null,null,null,null,null,null,null,null,null,3410,null,null,null,null,{"$f":"IF('Для розрахунку'!AQ85:BD85=0,\"-\",'Для розрахунку'!AQ85:BD85)","v":"-"},null,null,null,null,null,null,null,null,null,null,null,null,null,{"$f":"IF('Для розрахунку'!BE85:BR85=0,\"-\",'Для розрахунку'!BE85:BR85)","v":"-"}]
[null,"Залишок коштів на кінець року",null,null,null,null,null,null,null,null,null,null,null,null,null,null,null,null,null,null,null,null,null,null,null,null,null,null,null,null,null,null,null,null,null,null,null,3415,null,null,null,null,{"$f":"IF('Для розрахунку'!AQ86<0,\"(\",\" \")","v":" "},{"$f":"IF('Для розрахунку'!AQ86<>0,ABS('Для розрахунку'!AQ86),\"-\")","v":253},null,null,null,null,null,null,null,null,null,null,null,{"$f":"IF('Для розрахунку'!AQ86<0,\")\",\" \")","v":" "},{"$f":"IF('Для розрахунку'!BE86<0,\"(\",\" \")","v":" "},{"$f":"IF('Для розрахунку'!BE86<>0,ABS('Для розрахунку'!BE86),\"-\")","v":262},null,null,null,null,null,null,null,null,null,null,null,{"$f":"IF('Для розрахунку'!BE86<0,\")\",\" \")","v":" "}]
[]
["Керівник",null,null,null,null,null,null,null,null,null,null,null,null,null,null,null,null,null,null,null,null,null,null,null,null,null,null,null,null,null,null,null,null,"Д.Ш.Діасамідзе"]
[]
["Головний бухгалтер",null,null,null,null,null,null,null,null,null,null,null,null,null,null,null,null,null,null,null,null,null,null,null,null,null,null,null,null,null,null,null,null,"Л.Г. Кондратюк"]
["Аудитор",null,null,null,null,null,null,null,null,null,null,null,null,null,null,null,null,null,null,null,null,null,null,null,null,null,null,null,null,null,null,null,null,"О.В. Куліченко"]